bitfinex/quotes_BTCUSD_20251113
["timestamp","ask_amount","ask_price","bid_price","bid_amount"]
[1763005052546,0.24414065,102380.0,102370.0,0.00014084]
[1763005053616,0.24414065,102380.0,102370.0,0.00114084]
[1763005053829,0.24414065,102380.0,102370.0,0.00014084]
[1763005054709,0.19535065,102380.0,102370.0,0.09971084]
[1763005054940,0.19535065,102380.0,102370.0,0.61879942]
[1763005055829,0.19535065,102380.0,102370.0,0.18614084]
[1763005056462,0.19535065,102380.0,102370.0,0.38151057]
[1763005056905,0.19533157,102390.0,102370.0,0.38151057]
[1763005057115,0.19535065,102380.0,102370.0,0.38151057]
[1763005057337,0.19535065,102380.0,102370.0,0.24017057]
[1763005057554,0.00287715,102410.0,102400.0,0.1953125]
[1763005057776,0.19817333,102410.0,102400.0,0.48756858]
[1763005057987,0.00287715,102410.0,102400.0,0.3366525]
[1763005058227,0.19817057,102410.0,102400.0,0.3366525]
[1763005058873,0.00287715,102410.0,102400.0,0.3366525]
[1763005059088,0.19817057,102410.0,102400.0,0.3366525]
[1763005059306,0.22120057,102410.0,102390.0,0.47731858]
[1763005059532,0.22120057,102410.0,102390.0,0.32642093]
[1763005059533,0.1953125,102400.0,102390.0,0.32642093]
[1763005059741,0.1953125,102400.0,102390.0,0.75908015]
[1763005059952,0.19817057,102410.0,102400.0,0.1953125]
[1763005060177,0.00287715,102410.0,102400.0,0.77131108]
[1763005060417,0.00287715,102410.0,102400.0,0.76931108]
[1763005062399,0.00287715,102410.0,102400.0,0.77031108]
[1763005062805,0.00287715,102410.0,102400.0,0.3376525]
[1763005063020,0.19817057,102410.0,102400.0,0.14234]
[1763005063239,0.00287715,102410.0,102400.0,0.3376525]
[1763005063469,0.19817057,102410.0,102400.0,0.77031108]
[1763005063673,0.00287715,102410.0,102400.0,0.77031108]
[1763005065017,0.00287715,102410.0,102400.0,1.09331108]
[1763005066106,0.00287715,102410.0,102400.0,1.13672982]
[1763005066576,0.00287715,102410.0,102400.0,1.21729079]
[1763005067012,0.00287715,102410.0,102400.0,1.1748782]
[1763005067448,0.00287715,102410.0,102400.0,1.226974]
[1763005067859,0.00287715,102410.0,102400.0,1.23575624]
[1763005068097,0.00287715,102410.0,102400.0,1.23875624]
[1763005068298,0.00287715,102410.0,102400.0,1.23575624]
[1763005068726,0.00387715,102410.0,102400.0,1.23875624]
[1763005069363,1e-08,102410.0,102400.0,1.23875624]
[1763005069853,0.0002,102430.0,102420.0,0.51827436]
[1763005070069,0.0002,102430.0,102420.0,1.55493151]
[1763005070278,0.0002,102430.0,102420.0,1.57393665]
[1763005071137,0.00066866,102430.0,102420.0,1.57393665]
[1763005071344,0.00066866,102430.0,102420.0,1.57693665]
[1763005071565,1e-08,102430.0,102420.0,1.60035539]
[1763005071777,0.0002,102460.0,102450.0,0.56163591]
[1763005072006,0.0002,102460.0,102450.0,1.09400533]
[1763005072223,0.0002,102460.0,102450.0,1.18043533]
[1763005072668,0.0002,102460.0,102450.0,1.13701659]
[1763005073161,0.0002,102460.0,102450.0,0.94179942]
[1763005073357,0.0002,102460.0,102450.0,0.18614084]
[1763005073589,0.0002,102460.0,102450.0,0.09971084]
[1763005073802,0.00087,102460.0,102450.0,0.00014084]
[1763005074445,0.0002,102460.0,102450.0,0.18814084]
[1763005074657,0.06807,102460.0,102450.0,0.00014084]
[1763005075097,0.1038497,102470.0,102450.0,0.00014084]
[1763005075098,0.0880497,102470.0,102450.0,0.00014084]
[1763005076612,0.52070828,102470.0,102450.0,0.00014084]
[1763005076827,0.43265858,102460.0,102450.0,0.00014084]
[1763005077035,0.4338906,102460.0,102450.0,0.00014084]
[1763005078633,0.00123202,102460.0,102450.0,0.00014084]
[1763005080172,0.00123202,102460.0,102450.0,0.05557084]
[1763005080384,0.00123202,102460.0,102450.0,0.13964084]
[1763005080816,0.00123202,102460.0,102450.0,0.05557084]
[1763005081476,0.00123202,102460.0,102450.0,0.00014084]
[1763005082138,0.7568906,102460.0,102450.0,0.00014084]
[1763005082608,2.80030934,102460.0,102450.0,0.00014084]
[1763005082821,2.89872969,102460.0,102450.0,0.00014084]
[1763005083030,2.81847048,102460.0,102450.0,0.00014084]
[1763005083251,2.81847699,102460.0,102450.0,0.00014084]
[1763005083490,0.00123202,102460.0,102450.0,0.00014084]
[1763005083916,0.00123202,102460.0,102450.0,0.04097084]
[1763005084121,0.00423202,102460.0,102450.0,0.18330084]
[1763005084328,0.00123202,102460.0,102450.0,0.18330084]
[1763005084745,0.00223202,102460.0,102450.0,0.18330084]
[1763005084955,0.00123202,102460.0,102450.0,0.18330084]
[1763005085199,0.00123202,102460.0,102450.0,0.00014084]
[1763005085387,0.00123202,102460.0,102450.0,0.09644084]
[1763005085817,0.00123202,102460.0,102450.0,0.00014084]
[1763005086709,0.7568906,102460.0,102450.0,0.00014084]
[1763005086912,2.7578906,102460.0,102450.0,0.00014084]
[1763005087373,2.34344916,102460.0,102450.0,0.00014084]
[1763005087586,0.00223202,102460.0,102450.0,0.81117659]
[1763005087809,0.00123202,102460.0,102450.0,0.18330084]
[1763005088016,0.00323202,102460.0,102450.0,0.09644084]
[1763005088225,0.00323202,102460.0,102450.0,0.37851801]
[1763005088440,0.00123202,102460.0,102450.0,0.18330084]
[1763005088865,0.00123202,102460.0,102450.0,0.37851801]
[1763005089529,0.00123202,102460.0,102450.0,0.72189562]
[1763005089957,0.00123202,102460.0,102450.0,1.04489562]
[1763005090169,0.00123202,102460.0,102450.0,0.84967845]
[1763005090392,0.00123202,102460.0,102450.0,0.52667845]
[1763005090817,0.00123202,102460.0,102450.0,0.17824084]
[1763005091032,0.00123202,102460.0,102450.0,0.71683562]
[1763005091253,0.00123202,102460.0,102450.0,0.52161845]
[1763005091471,0.00123202,102460.0,102450.0,0.17824084]
[1763005091916,0.00123202,102460.0,102450.0,0.04297084]
[1763005092118,0.00123202,102460.0,102450.0,0.04097084]
[1763005092754,0.00123202,102460.0,102450.0,0.00014084]
[1763005093201,0.34460963,102460.0,102450.0,0.00014084]
[1763005094056,0.00123202,102460.0,102450.0,0.00114084]
[1763005094273,0.00123202,102460.0,102450.0,0.00014084]
[1763005094944,0.00123202,102460.0,102450.0,0.09851084]
[1763005095174,0.00123202,102460.0,102450.0,0.71604562]
[1763005096658,0.00123202,102460.0,102450.0,0.52082845]
[1763005096888,0.00123202,102460.0,102450.0,0.71604562]
[1763005102690,0.00123202,102460.0,102450.0,1.03904562]
[1763005103151,0.00123202,102460.0,102450.0,4.03904562]
[1763005103796,0.00123202,102460.0,102450.0,3.42351084]
[1763005104003,0.00123202,102460.0,102450.0,3.69766801]
[1763005104214,0.00123202,102460.0,102450.0,3.17945084]
[1763005104428,0.00123202,102460.0,102450.0,3.37466801]
[1763005104644,0.00123202,102460.0,102450.0,3.10051084]
[1763005105053,0.00123202,102460.0,102450.0,3.37266801]
[1763005105265,0.00123202,102460.0,102450.0,3.37366801]
[1763005106731,0.00123202,102460.0,102450.0,3.71704562]
[1763005106924,0.00123202,102460.0,102450.0,3.52182845]
[1763005107376,0.00123202,102460.0,102450.0,3.17845084]
[1763005107792,0.00123202,102460.0,102450.0,3.37366801]
[1763005108212,0.00123202,102460.0,102450.0,3.71704562]
[1763005108417,0.00123202,102460.0,102450.0,3.52182845]
[1763005108625,0.00123202,102460.0,102450.0,3.17845084]
[1763005108841,0.00123202,102460.0,102450.0,3.09951084]
[1763005109669,0.00123202,102460.0,102450.0,3.18204084]
[1763005110293,0.00123202,102460.0,102450.0,3.04318084]
[1763005110498,0.00123202,102460.0,102450.0,3.00114084]
[1763005110919,0.34460963,102460.0,102450.0,3.00114084]
[1763005111779,0.00123202,102460.0,102450.0,3.00114084]
[1763005112420,0.34460963,102460.0,102450.0,3.00414084]
[1763005112626,0.34460963,102460.0,102450.0,3.00314084]
[1763005113421,2.91102837,102460.0,102450.0,3.00314084]
[1763005114016,2.71102837,102460.0,102450.0,3.00314084]
[1763005114330,2.71102837,102460.0,102450.0,3.00014084]
[1763005114331,2.91102837,102460.0,102450.0,3.00014084]
[1763005114782,2.91102837,102460.0,102450.0,3.00214084]
[1763005115350,2.92102836,102460.0,102450.0,2.21541236]
[1763005115527,2.92102836,102460.0,102450.0,1.25902897]
[1763005115528,2.94842748,102460.0,102450.0,1.25902897]
[1763005115966,2.58791666,102460.0,102450.0,1.25902897]
[1763005116168,2.93929426,102460.0,102450.0,1.25902897]
[1763005116295,2.92102836,102460.0,102450.0,1.25902897]
[1763005116498,2.92402836,102460.0,102450.0,1.25902897]
[1763005116717,3.02244871,102460.0,102450.0,1.25902897]
[1763005117125,3.0324487,102460.0,102450.0,0.91817082]
[1763005117496,2.8082425,102460.0,102450.0,0.7704195]
[1763005117740,2.36644454,102460.0,102450.0,0.7704195]
[1763005117902,2.10302582,102460.0,102450.0,0.7704195]
[1763005118123,0.003,102460.0,102450.0,0.7704195]
[1763005118534,0.326,102460.0,102450.0,0.7704195]
[1763005119155,2.66637761,102460.0,102450.0,0.7704195]
[1763005119365,2.70979635,102460.0,102450.0,0.7704195]
[1763005119581,2.71079635,102460.0,102450.0,0.7704195]
[1763005120185,2.71079635,102460.0,102450.0,0.7694195]
[1763005120379,2.70979635,102460.0,102450.0,0.7714195]
[1763005120790,0.002,102460.0,102450.0,0.7714195]
[1763005121037,0.002,102460.0,102450.0,0.7694195]
[1763005121186,0.002,102460.0,102450.0,0.7704195]
[1763005122022,0.4110497,102470.0,102450.0,0.7704195]
[1763005122234,0.002,102460.0,102450.0,0.7704195]
[1763005122647,0.4110497,102470.0,102450.0,0.7694195]
[1763005123045,0.001,102460.0,102450.0,1.39254301]
[1763005123440,0.001,102460.0,102450.0,1.44253301]
[1763005123941,2.0,102480.0,102460.0,0.19519777]
[1763005124127,2.0,102480.0,102460.0,0.08253]
[1763005124271,2.0,102480.0,102450.0,1.40030507]
[1763005124476,0.0880497,102470.0,102450.0,0.7694195]
[1763005124694,0.0880497,102470.0,102450.0,0.8539495]
[1763005124896,0.0880497,102470.0,102450.0,0.7714195]
[1763005125143,0.0900497,102470.0,102450.0,0.7714195]
[1763005125302,0.0880497,102470.0,102450.0,0.7714195]
[1763005125909,0.0880497,102470.0,102450.0,0.7694195]
[1763005126322,2.0,102460.0,102450.0,0.7714195]
[1763005126737,2.0,102460.0,102450.0,0.7694195]
[1763005127142,2.0,102460.0,102450.0,0.7714195]
[1763005127612,2.0,102460.0,102450.0,0.7694195]
[1763005127818,2.0,102460.0,102450.0,0.7724195]
[1763005129080,0.0880497,102470.0,102450.0,0.7724195]
[1763005129290,0.0880497,102470.0,102460.0,0.05199]
[1763005129731,0.00024632,102470.0,102460.0,0.13452]
[1763005129917,0.00024632,102470.0,102460.0,0.47789761]
[1763005130150,0.00024632,102470.0,102460.0,0.13452]
[1763005130569,0.00124632,102470.0,102460.0,0.13452]
[1763005130782,0.00124632,102470.0,102460.0,0.05199]
[1763005131005,0.00124632,102470.0,102450.0,1.19532711]
[1763005131211,0.00124632,102470.0,102460.0,0.002]
[1763005131818,0.00024632,102470.0,102460.0,0.002]
[1763005132256,0.00024632,102470.0,102450.0,0.7694195]
[1763005132470,0.00024632,102470.0,102450.0,1.04716586]
[1763005132679,0.00024632,102470.0,102460.0,0.003]
[1763005133320,0.00024632,102470.0,102450.0,0.7694195]
[1763005133321,0.00032632,102470.0,102450.0,0.7694195]
[1763005133548,0.00032632,102470.0,102450.0,1.05016558]
[1763005133747,0.00032632,102470.0,102450.0,0.8549495]
[1763005134092,0.00032632,102470.0,102450.0,0.8519495]
[1763005135306,0.00032632,102470.0,102460.0,0.003]
[1763005135717,0.00032632,102470.0,102450.0,0.8519495]
[1763005135920,0.00032632,102470.0,102450.0,0.7694195]
[1763005136059,0.00032632,102470.0,102450.0,0.7724195]
[1763005136692,8e-05,102460.0,102450.0,0.7724195]
[1763005138340,8e-05,102460.0,102450.0,0.7694195]
[1763005138766,8e-05,102460.0,102450.0,0.7724195]
[1763005140002,2.38687635,102460.0,102450.0,0.7724195]
[1763005140469,2.70987635,102460.0,102450.0,0.7724195]
[1763005142079,2.70987635,102460.0,102450.0,0.7694195]
[1763005142288,2.71187635,102460.0,102450.0,0.7694195]
[1763005142496,2.71187635,102460.0,102450.0,0.7704195]
[1763005143126,2.91187635,102460.0,102450.0,0.7704195]
[1763005143548,2.92187634,102460.0,102450.0,0.7704195]
[1763005144594,2.91187635,102460.0,102450.0,0.7704195]
[1763005144799,2.92187634,102460.0,102450.0,0.7704195]
[1763005145031,2.72187634,102460.0,102450.0,0.7704195]
[1763005145660,2.37849873,102460.0,102450.0,0.7704195]
[1763005145879,2.36849874,102460.0,102450.0,0.7704195]
[1763005147419,2.46691909,102460.0,102450.0,0.7704195]
[1763005148051,0.002,102460.0,102450.0,1.11379711]
[1763005148288,0.002,102460.0,102450.0,0.7704195]
[1763005148507,2.04549874,102460.0,102450.0,0.7704195]
[1763005150367,0.04549874,102460.0,102450.0,0.7704195]
[1763005150571,0.002,102460.0,102450.0,1.22675711]
[1763005150976,0.002,102460.0,102450.0,1.31504104]
[1763005151192,0.002,102460.0,102450.0,1.51025821]
[1763005151393,0.002,102460.0,102450.0,1.60725821]
[1763005152059,0.00024632,102470.0,102460.0,0.19519812]
[1763005152285,0.00024632,102470.0,102460.0,0.78809966]
[1763005152617,0.00024632,102470.0,102460.0,1.19914936]
[1763005152720,3.65038817,102500.0,102490.0,0.19514098]
[1763005152947,3.65038817,102500.0,102490.0,0.73976252]
[1763005153186,3.65038817,102500.0,102490.0,0.83676252]
[1763005153187,3.65112687,102500.0,102490.0,0.83676252]
[1763005153858,3.65126754,102500.0,102490.0,0.83676252]
[1763005154741,3.65126754,102500.0,102490.0,0.83876252]
[1763005155161,3.65226754,102500.0,102490.0,0.83876252]
[1763005155809,3.65226754,102500.0,102490.0,1.16176252]
[1763005156026,3.65226754,102500.0,102490.0,0.73010098]
[1763005156265,3.65226754,102500.0,102490.0,1.16176252]
[1763005157336,3.65126754,102500.0,102490.0,1.15976252]
[1763005157570,3.65126754,102500.0,102490.0,1.16176252]
[1763005157824,3.65126754,102500.0,102490.0,1.16576252]
[1763005159000,3.55290754,102500.0,102490.0,1.16576252]
[1763005159264,3.55290754,102500.0,102490.0,1.20918126]
[1763005159265,3.54782987,102500.0,102490.0,1.20918126]
[1763005159501,1.43001975,102500.0,102490.0,1.24395718]
[1763005159771,1.12649713,102500.0,102490.0,1.27648943]
[1763005160013,1.10913933,102500.0,102490.0,0.83480994]
[1763005160228,1.10913933,102500.0,102490.0,1.24195718]
[1763005160470,1.10913933,102500.0,102490.0,1.23195718]
[1763005160700,1.10913933,102500.0,102490.0,1.23395718]
[1763005160924,1.10913933,102500.0,102490.0,1.22795718]
[1763005161374,1.10913933,102500.0,102490.0,1.23695718]
[1763005161590,1.10913933,102500.0,102490.0,1.23295718]
[1763005161801,1.10913933,102500.0,102490.0,1.23795718]
[1763005162012,1.10913933,102500.0,102490.0,1.24695718]
[1763005162232,0.66822574,102500.0,102490.0,1.24695718]
[1763005162447,0.37984479,102500.0,102490.0,1.25695717]
[1763005162656,0.26301244,102500.0,102490.0,1.28275699]
[1763005163106,0.26301244,102500.0,102490.0,1.25695717]
[1763005163329,1e-08,102500.0,102490.0,1.25695717]
[1763005165028,1e-08,102500.0,102490.0,0.82529563]
[1763005165245,1e-08,102500.0,102490.0,1.25695717]
[1763005165900,1e-08,102500.0,102490.0,1.26086364]
[1763005166790,1e-08,102500.0,102490.0,0.93786365]
[1763005166999,1e-08,102500.0,102490.0,1.23695718]
[1763005167207,1e-08,102500.0,102490.0,1.24086364]
[1763005167435,1e-08,102500.0,102490.0,1.26086364]
[1763005167648,1e-08,102500.0,102490.0,1.27086363]
[1763005170471,0.00029618,102520.0,102510.0,0.57152164]
[1763005170698,0.002,102530.0,102520.0,0.53808387]
[1763005170910,0.002,102530.0,102520.0,1.1258113]
[1763005171566,0.002,102530.0,102520.0,1.10581131]
[1763005171783,0.002,102530.0,102520.0,1.1158113]
[1763005172024,0.002,102530.0,102520.0,1.1358113]
[1763005173120,0.002,102530.0,102520.0,1.1378113]
[1763005173621,0.002,102530.0,102520.0,1.1418113]
[1763005176256,0.00273837,102530.0,102520.0,1.1418113]
[1763005176496,0.00224837,102530.0,102520.0,1.1418113]
[1763005176743,8e-05,102550.0,102540.0,0.56146457]
[1763005176960,0.00054866,102550.0,102540.0,1.54520735]
[1763005177188,0.00054866,102550.0,102540.0,1.56520735]
[1763005177412,0.00054866,102550.0,102540.0,1.65825735]
[1763005178511,0.00054866,102550.0,102540.0,1.63825735]
[1763005178942,0.00054866,102550.0,102540.0,1.81475734]
[1763005179172,0.00054866,102550.0,102540.0,1.83292134]
[1763005179594,0.00054866,102550.0,102540.0,1.83092134]
[1763005179815,0.04727,102600.0,102540.0,1.83092134]
[1763005179816,0.38751572,102620.0,102570.0,0.20473821]
[1763005180026,2.0,102610.0,102580.0,0.63637792]
[1763005180242,2.0,102610.0,102590.0,0.62661021]
[1763005180458,2.0,102610.0,102590.0,0.57108154]
[1763005180665,2.0,102610.0,102590.0,0.13942]
[1763005180887,0.38760721,102620.0,102600.0,0.06584]
[1763005181145,0.38760721,102620.0,102610.0,0.11221]
[1763005181146,0.00409149,102620.0,102610.0,0.11221]
[1763005181357,9.149e-05,102620.0,102610.0,0.54387154]
[1763005181571,9.149e-05,102620.0,102610.0,0.83183431]
[1763005182485,9.149e-05,102620.0,102610.0,0.63692154]
[1763005182908,9.149e-05,102620.0,102610.0,0.83183431]
[1763005183346,0.00109149,102620.0,102610.0,0.83383431]
[1763005183567,9.149e-05,102620.0,102610.0,0.83383431]
[1763005183779,9.149e-05,102620.0,102610.0,0.63692154]
[1763005183986,0.00209149,102620.0,102610.0,0.63692154]
[1763005184201,0.00209149,102620.0,102590.0,0.13942]
[1763005184202,0.04372149,102620.0,102590.0,0.13942]
[1763005184427,0.13177119,102620.0,102590.0,0.13942]
[1763005184635,2.0,102610.0,102590.0,0.04637]
[1763005185311,0.1316797,102600.0,102570.0,0.57108154]
[1763005185565,0.1316797,102600.0,102570.0,0.13942]
[1763005185805,2.4110497,102600.0,102590.0,0.002]
[1763005186236,2.4110497,102600.0,102550.0,0.57108154]
[1763005186237,2.88634124,102600.0,102550.0,0.57108154]
[1763005186443,0.0880497,102580.0,102550.0,0.57108154]
[1763005186661,2.0880497,102580.0,102570.0,0.001]
[1763005186875,2.1316797,102580.0,102570.0,0.001]
[1763005187101,2.84271124,102580.0,102570.0,0.001]
[1763005187312,2.69968382,102580.0,102570.0,0.001]
[1763005187522,2.80459154,102580.0,102570.0,0.001]
[1763005187736,2.37307053,102580.0,102570.0,0.001]
[1763005187943,2.0,102570.0,102550.0,0.04637]
[1763005188148,2.0063,102570.0,102550.0,0.04637]
[1763005188367,0.0063,102570.0,102550.0,0.04637]
[1763005188581,0.41119023,102580.0,102550.0,0.04637]
[1763005188827,2.0,102570.0,102550.0,0.04637]
[1763005189036,0.0063,102560.0,102540.0,0.52471154]
[1763005189242,0.0063,102560.0,102530.0,0.77589813]
[1763005189481,0.0063,102560.0,102540.0,0.52471154]
[1763005189713,0.04363,102570.0,102540.0,0.52471154]
[1763005189950,0.04363,102570.0,102550.0,0.04637]
[1763005189951,2.0,102570.0,102550.0,0.04637]
[1763005190195,0.002,102570.0,102550.0,0.04637]
[1763005190417,2.0,102570.0,102550.0,0.04637]
[1763005190640,0.002,102560.0,102550.0,0.04637]
[1763005190875,0.04363,102570.0,102550.0,0.04637]
[1763005191113,0.1376097,102560.0,102530.0,0.47803154]
[1763005191343,0.1376097,102560.0,102540.0,0.001]
[1763005192020,0.1376097,102560.0,102530.0,0.77589882]
[1763005192241,0.0943497,102560.0,102530.0,0.77589882]
[1763005192730,0.1376097,102560.0,102530.0,0.47803154]
[1763005192945,0.1396097,102560.0,102540.0,0.001]
[1763005193165,0.0963497,102560.0,102540.0,0.28909499]
[1763005193407,0.0920497,102560.0,102550.0,0.04637]
[1763005194101,0.004,102560.0,102550.0,0.04637]
[1763005194316,2.0,102570.0,102550.0,0.04637]
[1763005194528,0.0963497,102560.0,102550.0,0.04637]
[1763005195410,0.0963497,102560.0,102550.0,0.04737]
[1763005195619,0.0943497,102560.0,102550.0,0.04737]
[1763005196056,0.0963497,102560.0,102550.0,0.001]
[1763005197447,0.1396097,102560.0,102550.0,0.001]
[1763005197898,0.89427124,102560.0,102550.0,0.001]
[1763005198129,2.91245589,102560.0,102550.0,0.001]
[1763005198352,2.95587463,102560.0,102550.0,0.001]
[1763005198582,2.97476957,102560.0,102550.0,0.001]
[1763005198800,2.323,102550.0,102510.0,0.04637]
[1763005199037,0.00043,102530.0,102510.0,0.04637]
[1763005199254,0.04363,102520.0,102500.0,0.43166154]
[1763005199463,0.04326,102510.0,102490.0,0.77591678]
[1763005200116,0.04326,102510.0,102500.0,0.19512195]
[1763005200334,0.04335134,102510.0,102500.0,0.19512195]
[1763005200531,0.04335134,102510.0,102500.0,0.25653195]
[1763005200741,9.134e-05,102510.0,102500.0,0.78755349]
[1763005201184,0.00109134,102510.0,102500.0,0.78755349]
[1763005201391,0.00109134,102510.0,102490.0,0.14573]
[1763005201620,0.00739134,102510.0,102500.0,0.002]
[1763005201844,0.05065134,102510.0,102500.0,0.002]
[1763005202274,0.04965134,102510.0,102500.0,0.002]
[1763005202493,0.04965134,102510.0,102490.0,0.04673]
[1763005202701,0.00043,102500.0,102470.0,0.78232861]
[1763005202942,0.00043,102500.0,102470.0,0.04637]
[1763005202943,0.1321097,102500.0,102470.0,0.04637]
[1763005203160,2.0,102490.0,102470.0,0.76434901]
[1763005203591,9.134e-05,102510.0,102480.0,0.69255157]
[1763005203796,9.134e-05,102510.0,102490.0,0.0456]
[1763005204004,9.134e-05,102510.0,102490.0,0.002]
[1763005204005,0.0880497,102500.0,102490.0,0.002]
[1763005204264,0.04372134,102510.0,102490.0,0.0476]
[1763005204265,9.134e-05,102510.0,102490.0,0.0476]
[1763005204476,0.001,102500.0,102490.0,0.24073776]
[1763005204687,0.001,102500.0,102490.0,0.33187776]
[1763005204897,0.001,102500.0,102490.0,0.8292693]
[1763005205613,9.134e-05,102510.0,102500.0,0.19512195]
[1763005205833,9.134e-05,102510.0,102500.0,0.69251349]
[1763005206050,0.00309134,102510.0,102500.0,0.78365349]
[1763005206274,9.134e-05,102510.0,102500.0,1.10665349]
[1763005207372,0.04363,102570.0,102530.0,1.38138793]
[1763005207599,0.04363,102590.0,102570.0,0.1949751]
[1763005207811,0.04363,102590.0,102580.0,0.19496977]
[1763005207812,0.04372144,102590.0,102580.0,0.19496977]
[1763005208284,0.04372144,102590.0,102580.0,0.67223131]
[1763005208517,9.144e-05,102590.0,102580.0,0.82910131]
[1763005208943,9.144e-05,102590.0,102580.0,0.73796131]
[1763005209147,9.144e-05,102590.0,102580.0,0.73896131]
[1763005209592,0.00109144,102590.0,102580.0,0.54399154]
[1763005209805,0.00109144,102590.0,102580.0,0.73896131]
[1763005210021,0.00109144,102590.0,102580.0,0.83010131]
[1763005210963,0.002,102630.0,102610.0,0.19489496]
[1763005211195,0.002,102630.0,102620.0,0.64847114]
[1763005211196,0.00214039,102630.0,102620.0,0.64847114]
[1763005211404,0.00214039,102630.0,102620.0,0.73961114]
[1763005211846,0.00214039,102630.0,102620.0,0.20247]
[1763005212107,0.00214039,102630.0,102620.0,0.73961114]
[1763005213436,0.00435292,102630.0,102620.0,0.73961114]
[1763005213684,0.00435292,102630.0,102620.0,1.06261114]
[1763005213930,0.00435292,102630.0,102620.0,1.06361114]
[1763005215652,0.00435292,102630.0,102620.0,0.86871736]
[1763005215874,0.00435292,102630.0,102620.0,0.77757736]
[1763005216089,0.04907292,102630.0,102620.0,0.34324736]
[1763005216311,0.04907292,102630.0,102610.0,0.71084736]
[1763005216546,0.05208039,102630.0,102620.0,0.001]
[1763005217216,0.05208039,102630.0,102610.0,0.38784736]
[1763005217424,0.04686039,102630.0,102610.0,0.38784736]
[1763005217636,0.00214039,102630.0,102620.0,0.34224736]
[1763005217857,0.00214039,102630.0,102610.0,0.13674]
[1763005218065,0.04686039,102630.0,102610.0,0.38784736]
[1763005218318,0.00214039,102630.0,102610.0,0.38784736]
[1763005218523,0.00214039,102630.0,102610.0,0.67489865]
[1763005218729,0.00214039,102630.0,102610.0,0.47898736]
[1763005218930,0.00214039,102630.0,102610.0,0.67389983]
[1763005219143,0.00314039,102630.0,102620.0,0.34224736]
[1763005219354,0.00314039,102630.0,102620.0,0.60287114]
[1763005219586,0.00414039,102630.0,102620.0,0.15687]
[1763005219788,0.00414039,102630.0,102620.0,0.49911736]
[1763005219997,0.00414039,102630.0,102620.0,0.69401114]
[1763005220430,0.00414039,102630.0,102620.0,0.49911736]
[1763005220647,0.00314039,102630.0,102620.0,0.49911736]
[1763005221073,0.00214039,102630.0,102620.0,0.49911736]
[1763005221516,0.04786039,102630.0,102610.0,0.38784736]
[1763005221743,0.00196689,102620.0,102610.0,0.38784736]
[1763005221958,0.00201689,102620.0,102600.0,0.66524736]
[1763005222171,5e-05,102620.0,102600.0,0.34224736]
[1763005222379,0.04477,102620.0,102600.0,0.34224736]
[1763005222583,5e-05,102620.0,102600.0,0.53717829]
[1763005222793,0.00517,102610.0,102590.0,0.0456]
[1763005223003,0.00517,102610.0,102590.0,0.38784736]
[1763005223635,0.13491009,102630.0,102600.0,0.7037955]
[1763005223837,0.09019009,102630.0,102610.0,0.34224736]
[1763005224043,0.09019009,102630.0,102610.0,0.28605172]
[1763005224249,0.09019009,102630.0,102610.0,0.43338736]
[1763005224466,0.09019009,102630.0,102600.0,0.63806457]
[1763005224669,0.09019009,102630.0,102610.0,0.19491243]
[1763005224877,0.09119009,102630.0,102610.0,0.19491243]
[1763005225086,0.00214039,102630.0,102610.0,0.19491243]
[1763005225298,0.04686039,102630.0,102600.0,0.43338736]
[1763005225499,0.04786039,102630.0,102600.0,0.63806492]
[1763005225911,0.13591009,102630.0,102600.0,0.63806399]
[1763005226343,0.13591009,102630.0,102600.0,0.43338736]
[1763005226548,0.04472,102620.0,102590.0,0.59254253]
[1763005226768,0.00522,102610.0,102590.0,0.0456]
[1763005226966,0.00522,102610.0,102590.0,0.38784736]
[1763005227172,5e-05,102600.0,102580.0,0.59255736]
[1763005227588,0.04644119,102610.0,102580.0,0.68369392]
[1763005227799,0.04472,102610.0,102590.0,0.19495036]
[1763005228017,0.04472,102610.0,102580.0,0.68369392]
[1763005228243,0.04472,102610.0,102590.0,0.001]
[1763005228668,0.04446173,102610.0,102590.0,0.0466]
[1763005229516,0.04451,102590.0,102560.0,0.0456]
[1763005229723,0.1325097,102580.0,102560.0,0.0456]
[1763005229987,0.00548,102570.0,102550.0,0.58287417]
[1763005230402,0.00548,102570.0,102550.0,0.38784736]
[1763005230819,0.00548,102570.0,102550.0,0.3879388]
[1763005231041,0.00548,102570.0,102550.0,0.58295626]
[1763005231451,0.00548,102570.0,102550.0,0.3879388]
[1763005231656,0.00044,102560.0,102550.0,9.144e-05]
[1763005232092,0.0449,102560.0,102550.0,9.144e-05]
[1763005232518,0.1329497,102560.0,102550.0,9.144e-05]
[1763005233603,2.5186158,102560.0,102550.0,9.144e-05]
[1763005234227,2.8416158,102560.0,102550.0,9.144e-05]
[1763005234891,3.19386315,102560.0,102550.0,1.44e-06]
[1763005235100,3.19386315,102560.0,102500.0,0.53736861]
[1763005235101,2.0,102530.0,102500.0,0.34224736]
[1763005235307,2.0,102530.0,102500.0,0.54759019]
[1763005235511,2.04446,102530.0,102500.0,0.54759019]
[1763005235731,0.04446,102530.0,102500.0,0.34271602]
[1763005235947,0.0880497,102520.0,102500.0,0.00046866]
[1763005236197,0.1325097,102520.0,102500.0,0.00046866]
[1763005236401,0.1325097,102520.0,102500.0,0.00146866]
[1763005236611,0.00548,102510.0,102500.0,0.00146866]
[1763005236794,0.04955,102510.0,102500.0,0.00146866]
[1763005237042,0.04955,102510.0,102500.0,0.00246866]
[1763005237244,0.04955,102510.0,102500.0,0.00146866]
[1763005237868,0.04955,102510.0,102500.0,0.00046866]
[1763005238078,0.45446844,102540.0,102500.0,0.70464406]
[1763005238079,0.13146844,102540.0,102500.0,0.70464406]
[1763005238285,2.0,102530.0,102510.0,0.60296549]
[1763005238494,2.0,102530.0,102520.0,0.19508388]
[1763005238702,0.0880497,102540.0,102520.0,0.53733124]
[1763005238918,2.0,102540.0,102520.0,0.70313543]
[1763005239121,2.0,102540.0,102520.0,0.36088807]
[1763005239326,2.0,102540.0,102520.0,0.70313543]
[1763005239755,2.0,102550.0,102530.0,0.74990523]
[1763005239964,0.0880497,102560.0,102540.0,0.19504549]
[1763005240199,0.4110497,102560.0,102540.0,0.19504549]
[1763005240398,0.002,102540.0,102530.0,0.68427523]
[1763005240610,0.1325097,102560.0,102530.0,0.68427523]
[1763005240828,0.1325097,102560.0,102530.0,0.74990523]
[1763005241060,0.1325097,102560.0,102530.0,0.31723601]
[1763005241311,0.32314028,102560.0,102540.0,0.62771072]
[1763005241525,0.45564998,102560.0,102530.0,0.40765674]
[1763005241825,0.45564998,102560.0,102530.0,0.11242]
[1763005242060,0.45564998,102560.0,102530.0,0.25160773]
[1763005242472,0.04446,102550.0,102530.0,0.04679]
[1763005242650,0.04446,102550.0,102530.0,0.24185462]
[1763005243071,0.04446,102550.0,102530.0,0.04679]